bitfinex/quotes_ETHUSD_20210401
["timestamp","ask_amount","ask_price","bid_price","bid_amount"]
[1617304237666,1.0,1973.9,1973.8,13.7398]
[1617304237866,1.0,1973.9,1973.8,18.81983258]
[1617304238065,1.0,1973.9,1973.8,13.3398]
[1617304238290,1.0,1973.9,1973.8,9.6298]
[1617304238494,1.0,1973.9,1973.8,10.25937167]
[1617304238695,1.0,1973.9,1973.8,1.01957167]
[1617304238890,3.55,1973.9,1973.8,1.01957167]
[1617304239289,3.55,1973.9,1973.8,6.02957167]
[1617304240090,3.55,1973.9,1973.8,13.72957167]
[1617304240290,3.55,1973.9,1973.8,9.26957167]
[1617304240691,3.55,1973.9,1973.8,9.65957167]
[1617304240912,3.55,1973.9,1973.8,34.20106442]
[1617304241113,3.55,1973.9,1973.8,27.92103184]
[1617304241912,3.55,1973.9,1973.8,29.12103184]
[1617304242513,0.13139991,1974.1,1973.9,14.1]
[1617304242718,14.5014,1974.6,1974.1,7.5678]
[1617304242916,14.5014,1974.6,1974.4,0.39]
[1617304243115,14.5014,1974.6,1974.3,5.01]
[1617304243314,14.5014,1974.6,1974.3,10.56526869]
[1617304243548,14.5014,1974.6,1974.2,5.01]
[1617304243749,14.5014,1974.6,1974.1,8.1078]
[1617304243952,22.0514,1974.6,1974.1,8.1078]
[1617304244151,0.4,1974.5,1974.0,5.01]
[1617304244356,0.4,1974.3,1974.0,15.57526869]
[1617304244555,0.4,1974.3,1973.7,1.0095708]
[1617304244556,30.68,1974.1,1973.7,0.09132494]
[1617304244757,3.0,1973.9,1973.7,4.94e-06]
[1617304244955,3.0,1973.9,1973.4,0.528586]
[1617304244956,0.357,1973.7,1973.4,0.528586]
[1617304245352,29.49,1973.5,1973.4,0.528586]
[1617304245561,37.09246,1973.5,1973.4,0.528586]
[1617304245761,38.29246,1973.5,1973.4,0.528586]
[1617304245965,37.09246,1973.5,1973.4,0.528586]
[1617304246363,39.64246,1973.5,1973.4,0.528586]
[1617304246967,42.64246,1973.5,1973.4,0.528586]
[1617304247162,39.64246,1973.5,1973.4,0.528586]
[1617304247363,10.54246,1973.5,1973.4,0.528586]
[1617304247566,10.54246,1973.5,1973.4,0.928586]
[1617304247567,2.55,1973.5,1973.4,0.928586]
[1617304248172,2.55,1973.5,1973.4,3.32551342]
[1617304248570,2.55,1973.5,1973.4,3.71551342]
[1617304248988,2.55,1973.5,1973.4,20.37551342]
[1617304249195,2.55,1973.5,1973.4,25.10088254]
[1617304249387,2.55,1973.5,1973.4,23.41551342]
[1617304249592,2.55,1973.5,1973.4,31.01432342]
[1617304250189,2.55,1973.5,1973.4,28.06488355]
[1617304250190,0.05946806,1973.5,1973.4,28.06488355]
[1617304250787,0.05946806,1973.5,1973.4,16.41488355]
[1617304251612,0.05946806,1973.5,1973.4,16.02488355]
[1617304251813,0.05946806,1973.5,1973.4,11.01488355]
[1617304252225,0.05946806,1973.5,1973.4,17.71958281]
[1617304252417,0.05946806,1973.5,1973.4,35.98104298]
[1617304253013,0.06583834,1973.5,1973.4,35.98104298]
[1617304253213,0.06583834,1973.5,1973.4,43.98104298]
[1617304253612,2.61583834,1973.5,1973.4,35.98104298]
[1617304254434,2.61583834,1973.5,1973.4,33.49180113]
[1617304256237,2.61583834,1973.5,1973.4,33.64425372]
[1617304256666,21.81895,1974.6,1973.5,29.1]
[1617304256871,22.21895,1974.6,1974.5,7.68533625]
[1617304257071,21.76895,1974.6,1974.5,12.77392577]
[1617304257274,4.08,1974.5,1974.1,0.39]
[1617304257476,4.08,1974.5,1974.3,0.39]
[1617304257668,4.08,1974.5,1974.1,0.14]
[1617304257867,4.08,1974.5,1974.2,0.39]
[1617304258070,14.1714,1974.6,1974.2,0.39]
[1617304258270,14.1714,1974.6,1974.2,7.98622]
[1617304258468,14.1714,1974.6,1974.2,0.39]
[1617304258667,2.9,1974.5,1974.2,5.4]
[1617304258868,3.3,1974.5,1974.2,5.01]
[1617304259067,0.9,1974.5,1974.2,5.01]
[1617304259290,14.1714,1974.6,1974.5,7.68533625]
[1617304259493,14.1714,1974.6,1974.2,5.01]
[1617304259691,14.1714,1974.6,1974.2,5.4]
[1617304259891,14.1714,1974.6,1974.2,5.01]
[1617304260095,3.36,1974.5,1974.3,3.18161663]
[1617304260292,14.1714,1974.6,1974.3,2.79161663]
[1617304261093,16.7214,1974.6,1974.3,2.79161663]
[1617304261491,17.1214,1974.6,1974.3,2.79161663]
[1617304261693,3.74,1974.5,1974.3,2.79161663]
[1617304261913,17.1214,1974.6,1974.3,2.79161663]
[1617304262516,16.7214,1974.6,1974.3,2.79161663]
[1617304262719,16.7214,1974.6,1974.3,2.74161663]
[1617304262916,3.68,1974.5,1974.3,2.74161663]
[1617304263737,3.63,1974.5,1974.3,2.74161663]
[1617304264141,3.04,1974.4,1974.3,3.14161663]
[1617304264741,16.3214,1974.6,1974.4,30.0]
[1617304265146,16.3214,1974.6,1974.5,0.41]
[1617304265349,16.3214,1974.6,1974.5,26.4817978]
[1617304265350,2.55,1974.6,1974.5,26.4817978]
[1617304265542,2.55,1974.6,1974.5,35.6817978]
[1617304265943,2.55,1974.6,1974.5,14.21]
[1617304266343,2.55,1974.6,1974.5,14.59]
[1617304266740,2.55,1974.6,1974.5,19.6517978]
[1617304267163,2.55,1974.6,1974.5,14.59]
[1617304267366,1.03680268,1974.9,1974.6,17.95]
[1617304267566,1.03680268,1974.9,1974.8,5.01]
[1617304267766,6.55120268,1974.9,1974.8,5.01]
[1617304267968,6.55120268,1974.9,1974.7,5.01]
[1617304268166,6.55120268,1974.9,1974.6,0.4]
[1617304268167,0.95120268,1974.9,1974.6,0.4]
[1617304268366,0.95120268,1974.9,1974.5,5.15]
[1617304268566,3.50120268,1974.9,1974.6,0.38]
[1617304269785,3.50120268,1974.9,1974.8,30.0]
[1617304270191,29.95120268,1974.9,1974.8,29.95002808]
[1617304270386,29.95120268,1974.9,1974.5,5.01]
[1617304270592,0.39,1974.6,1974.3,2.74161663]
[1617304270989,0.67,1974.6,1974.3,2.74161663]
[1617304271196,2.74162471,1974.2,1973.9,16.3022]
[1617304271391,19.93,1974.0,1973.9,16.3022]
[1617304271591,19.93,1974.0,1973.7,31.01122285]
[1617304271788,19.93,1974.0,1973.7,30.0]
[1617304271789,2.98,1973.9,1973.7,30.0]
[1617304272415,0.688,1974.1,1973.7,34.54]
[1617304272615,0.688,1974.1,1973.8,0.41]
[1617304273220,12.75,1974.0,1973.7,4.54]
[1617304273417,0.688,1974.1,1973.7,7.59806]
[1617304273816,0.308,1974.1,1973.7,7.98806]
[1617304274016,0.308,1974.1,1973.9,5.01]
[1617304274216,0.4687108,1974.1,1973.9,5.01]
[1617304274618,0.4687108,1974.1,1973.9,12.60742]
[1617304275643,0.1607108,1974.1,1973.9,12.60742]
[1617304276246,0.1607108,1974.1,1973.9,12.65742894]
[1617304276247,2.7107108,1974.1,1973.9,12.65742894]
[1617304276445,2.7107108,1974.1,1974.0,6.0]
[1617304276644,2.7107108,1974.1,1974.0,3.18]
[1617304277443,2.7107108,1974.1,1974.0,10.12841]
[1617304278477,2.7107108,1974.1,1974.0,10.50841]
[1617304278674,2.7107108,1974.1,1974.0,10.12841]
[1617304279073,2.7107108,1974.1,1974.0,12.8680436]
[1617304279274,2.7107108,1974.1,1974.0,16.6480436]
[1617304281900,3.1007108,1974.1,1974.0,4.4704341]
[1617304282106,2.73818856,1974.0,1973.9,8.94e-06]
[1617304282306,6.20914461,1974.0,1973.9,8.94e-06]
[1617304282504,6.48914461,1974.0,1973.9,8.94e-06]
[1617304282921,5.28914461,1974.0,1973.9,8.94e-06]
[1617304283740,7.83914461,1974.0,1973.9,8.94e-06]
[1617304284130,16.62621575,1974.0,1973.9,8.94e-06]
[1617304284333,0.09132494,1973.9,1972.9,13.47127134]
[1617304284540,1.5797,1973.2,1972.9,13.47127134]
[1617304284726,9.7069,1973.2,1972.9,13.47127134]
[1617304285563,9.7069,1973.2,1972.7,11.24669273]
[1617304285564,0.371,1972.9,1972.7,11.24669273]
[1617304285762,0.371,1972.9,1972.5,0.39]
[1617304285962,0.66,1973.1,1972.5,0.39]
[1617304286164,0.28,1972.9,1972.7,11.24669273]
[1617304286366,0.66,1973.1,1972.5,0.39]
[1617304286564,0.37132494,1973.1,1972.6,0.41]
[1617304287163,0.39,1973.0,1972.4,0.09]
[1617304287363,0.698,1972.9,1972.4,0.09]
[1617304287562,0.258,1972.9,1972.4,0.5]
[1617304288178,0.39,1972.8,1972.4,0.05004773]
[1617304288578,7.9306,1972.8,1972.4,0.05004773]
[1617304289775,7.9306,1972.8,1972.4,5.06004773]
[1617304289976,7.9306,1972.8,1972.4,0.05004773]
[1617304290177,7.9306,1972.8,1972.5,2.83884777]
[1617304290178,8.216165,1972.8,1972.5,2.83884777]
[1617304290583,0.39,1972.7,1972.5,2.83884777]
[1617304290806,0.39,1972.6,1972.5,7.77e-06]
[1617304291003,7.5406,1972.8,1972.5,7.77e-06]
[1617304291004,10.1306,1972.8,1972.5,7.77e-06]
[1617304291204,2.96,1972.6,1972.5,7.77e-06]
[1617304291804,2.96,1972.6,1972.1,0.90000777]
[1617304291805,3.89490494,1972.5,1972.1,0.90000777]
[1617304292006,0.4,1972.3,1972.1,0.90000777]
[1617304292406,16.56,1972.2,1972.1,0.90000777]
[1617304292804,24.1674,1972.2,1972.1,0.90000777]
[1617304293205,30.5739,1972.2,1972.1,0.90000777]
[1617304293826,18.0939,1972.2,1972.1,0.90000777]
[1617304294025,18.4739,1972.2,1972.1,0.90000777]
[1617304294228,4.46,1972.2,1972.1,0.90000777]
[1617304294423,11.91,1972.2,1972.1,0.90000777]
[1617304294825,4.46,1972.2,1971.2,14.60756]
[1617304295027,4.46,1972.2,1971.7,0.39]
[1617304295028,0.09132494,1972.1,1971.7,0.39]
[1617304295228,0.47132494,1972.3,1971.7,0.39]
[1617304295433,0.28,1972.1,1971.2,23.54908]
[1617304295630,0.28,1972.1,1971.2,13.40756]
[1617304295828,0.336,1971.9,1971.3,0.14]
[1617304296046,0.336,1971.9,1971.3,0.53]
[1617304296047,0.35,1971.8,1971.3,0.53]
[1617304296248,0.09132494,1972.1,1971.5,0.4]
[1617304296448,0.09132494,1972.1,1971.7,0.39]
[1617304296449,1.68315045,1972.1,1971.7,0.39]
[1617304296645,0.28,1972.2,1971.7,0.39]
[1617304297049,0.28,1972.2,1971.8,0.39]
[1617304297444,0.66,1972.2,1971.6,8.94539]
[1617304297645,0.66,1972.2,1971.7,0.38]
[1617304297847,0.28,1972.2,1971.8,5.01]
[1617304298045,0.68,1972.2,1971.8,5.01]
[1617304298252,2.55,1972.6,1972.0,0.41]
[1617304298452,2.55,1972.6,1972.1,1.34]
[1617304298682,5.1,1972.6,1972.5,29.2306]
[1617304298874,5.1,1972.6,1972.5,28.8306]
[1617304299075,5.1,1972.6,1972.5,8.9806]
[1617304299879,5.26082487,1972.6,1972.5,8.9806]
[1617304300075,5.26082487,1972.6,1972.5,2.83576968]
[1617304301078,5.26082487,1972.6,1972.5,18.02576968]
[1617304301300,5.26082487,1972.6,1972.5,29.92576968]
[1617304301500,5.26082487,1972.6,1972.5,18.02576968]
[1617304301701,5.26082487,1972.6,1972.5,19.22576968]
[1617304301901,5.26082487,1972.6,1972.5,22.10576968]
[1617304302105,5.26082487,1972.6,1972.5,29.70814968]
[1617304302501,5.26082487,1972.6,1972.5,26.82814968]
[1617304303301,5.26082487,1972.6,1972.5,34.77814968]
[1617304303500,5.26082487,1972.6,1972.5,26.82814968]
[1617304303700,5.26082487,1972.6,1972.5,32.36814968]
[1617304305524,5.26082487,1972.6,1972.5,26.82814968]
[1617304305922,7.81082487,1972.6,1972.5,26.82814968]
[1617304306323,7.81082487,1972.6,1972.5,38.97814968]
[1617304306552,2.0,1973.0,1972.5,56.72643133]
[1617304306757,2.0,1973.0,1972.9,24.94]
[1617304306957,2.0,1973.0,1972.9,31.2129]
[1617304307154,2.0,1973.0,1972.9,32.4129]
[1617304307357,1.78,1973.0,1972.9,37.5729]
[1617304307555,27.5479,1973.8,1973.0,32.37442137]
[1617304307757,27.5479,1973.8,1973.5,0.39]
[1617304307956,27.5479,1973.8,1973.2,6.21]
[1617304308171,27.5479,1973.8,1973.3,5.41]
[1617304308372,4.32,1973.7,1973.6,11.37442137]
[1617304308573,1.66,1973.9,1973.6,8.1]
[1617304308574,1.28,1973.9,1973.6,8.1]
[1617304308772,1.0,1973.9,1973.6,13.11]
[1617304308970,1.0,1973.9,1973.8,3.27442137]
[1617304309201,1.0,1973.9,1973.8,5.8]
[1617304309400,1.0,1973.9,1973.6,13.11]
[1617304309600,1.0,1973.9,1973.8,5.01]
[1617304309801,1.0,1973.9,1973.8,4.01]
[1617304310004,1.39,1973.9,1973.5,8.7841]
[1617304310205,1.39,1973.9,1973.5,0.14]
[1617304310400,1.0,1973.9,1973.5,0.14]
[1617304311605,1.0,1973.9,1973.7,0.39]
[1617304311805,1.0,1973.9,1973.7,5.4]
[1617304312006,1.0,1973.9,1973.8,22.36]
[1617304312204,1.0,1973.9,1973.8,27.36]
[1617304312608,1.0,1973.9,1973.8,10.01]
[1617304312804,1.0,1973.9,1973.8,9.61]
[1617304313005,1.0,1973.9,1973.8,6.21]
[1617304313204,3.55,1973.9,1973.8,1.2]
[1617304315234,3.55,1973.9,1973.8,4.03576968]
[1617304316031,3.55,1973.9,1973.8,9.1163209]
[1617304316231,3.55,1973.9,1973.8,4.03576968]
[1617304317053,3.55,1973.9,1973.8,9.1163209]
[1617304317453,3.55,1973.9,1973.8,4.03576968]
[1617304317654,3.55,1973.9,1973.8,9.1163209]
[1617304318055,3.55,1973.9,1973.8,4.03576968]
[1617304318255,3.55,1973.9,1973.8,15.4663209]
[1617304318655,3.55,1973.9,1973.8,10.38576968]
[1617304319456,3.55,1973.9,1973.8,2.83576968]
[1617304320881,6.1,1973.9,1973.8,2.83576968]
[1617304321484,20.1,1973.9,1973.8,2.83576968]
[1617304322506,20.1,1973.9,1973.8,7.84576968]
[1617304322707,20.1,1973.9,1973.8,2.83576968]
[1617304326306,20.26071487,1973.9,1973.8,2.83576968]
[1617304326706,20.65071487,1973.9,1973.8,2.83576968]
[1617304327509,20.65071487,1973.9,1973.8,7.9163209]
[1617304327708,20.26071487,1973.9,1973.8,2.83576968]
[1617304328312,22.81071487,1973.9,1973.8,2.83576968]
[1617304329107,23.20071487,1973.9,1973.8,2.83576968]
[1617304330112,23.20071487,1973.9,1973.7,5.01]
[1617304330314,2.83576968,1973.8,1973.5,12.7491]
[1617304330513,2.83576968,1973.8,1973.6,0.41]
[1617304331310,2.83576968,1973.8,1973.6,5.42]
[1617304331512,2.83576968,1973.8,1973.6,1.61]
[1617304331711,2.83576968,1973.8,1973.7,1.2]
[1617304332111,19.81423032,1973.9,1973.7,3.37569925]
[1617304332311,19.81423032,1973.9,1973.7,6.25569925]
[1617304332512,19.81423032,1973.9,1973.7,3.37569925]
[1617304333131,19.81423032,1973.9,1973.7,10.97415925]
[1617304333732,19.81423032,1973.9,1973.7,11.36415925]
[1617304333934,19.81423032,1973.9,1973.7,10.97415925]
[1617304334332,19.81423032,1973.9,1973.8,5.01]
[1617304334532,19.81423032,1973.9,1973.8,12.60825]
[1617304334734,19.81423032,1973.9,1973.8,12.50825]
[1617304335361,19.81423032,1973.9,1973.8,15.66825]
[1617304335762,22.36423032,1973.9,1973.8,15.66825]
[1617304335964,22.36423032,1973.9,1973.8,16.86825]
[1617304336364,22.36423032,1973.9,1973.8,17.25825]
[1617304336968,22.36423032,1973.9,1973.8,25.25672502]
[1617304337168,22.52494519,1973.9,1973.8,32.25825]
[1617304337568,22.52494519,1973.9,1973.8,51.48007957]
[1617304337983,22.52494519,1973.9,1973.8,53.00653165]
[1617304338190,19.69261232,1973.9,1973.8,50.17566592]
[1617304338795,1.232e-05,1973.9,1973.8,61.65149311]
[1617304338994,0.99882008,1974.7,1974.1,11.47582719]
[1617304339204,0.99882008,1974.7,1974.6,9.29]
[1617304339394,0.99882008,1974.7,1974.6,1.41440481]
[1617304339592,0.99882008,1974.7,1974.4,2.4597]
[1617304339791,0.99882008,1974.7,1974.5,0.4]
[1617304340190,0.99882008,1974.7,1974.6,5.01]
[1617304340634,0.99882008,1974.7,1974.5,1.4030843]
[1617304340831,0.99882008,1974.7,1974.6,5.01]
[1617304341232,0.99882008,1974.7,1974.6,12.60536]
[1617304341435,0.99882008,1974.7,1974.6,12.99536]
[1617304342031,0.74882008,1974.7,1974.3,0.14]
[1617304342236,0.74882008,1974.7,1974.5,0.41]
[1617304342631,0.74882008,1974.7,1974.5,1.00065332]
[1617304343032,0.74882008,1974.7,1974.6,0.4]
[1617304343235,3.29882008,1974.7,1974.6,0.4]
[1617304343432,2.55,1974.7,1974.6,7.99518]
[1617304343631,2.55,1974.7,1974.6,9.00518]
[1617304344233,2.55,1974.7,1974.6,7.83833174]
[1617304345034,2.55,1974.7,1974.6,2.82833174]
[1617304345233,3.57760433,1974.7,1974.6,2.82833174]
[1617304345634,2.55,1974.7,1974.6,2.82833174]
[1617304346457,2.55,1974.7,1974.6,6.20833174]
[1617304346662,2.55,1974.7,1974.6,7.23033174]
[1617304346858,2.55,1974.7,1974.6,19.18472484]
[1617304347057,2.55,1974.7,1974.6,37.93867342]
[1617304347254,2.5,1974.7,1974.6,37.93867342]
[1617304347457,2.5,1974.7,1974.6,44.93300649]
[1617304348257,2.5,1974.7,1974.6,53.84793649]
[1617304349284,0.0001,1974.7,1974.6,53.84793649]
[1617304349883,1.00993226,1975.4,1974.7,26.25]
[1617304350085,2.55,1975.5,1974.8,7.59401]
[1617304350291,4.015,1975.4,1975.1,0.4]
[1617304350484,3.7,1975.4,1975.1,0.4]
[1617304351120,4.7217729,1975.4,1975.1,0.4]
[1617304351317,1.0217729,1975.4,1975.1,0.4]
[1617304351519,1.0217729,1975.4,1975.3,0.39]
[1617304351719,22.0217729,1975.4,1975.3,5.01]
[1617304351921,22.0217729,1975.4,1975.0,22.89828165]
[1617304352120,1.0217729,1975.4,1975.0,22.89828165]
[1617304352318,0.9717729,1975.4,1975.0,22.89828165]
[1617304352519,0.9717729,1975.4,1975.0,26.76828165]
[1617304352920,0.9717729,1975.4,1975.1,0.4]
[1617304353734,0.9717729,1975.4,1975.1,5.41]
[1617304353938,0.9717729,1975.4,1975.3,29.54]
[1617304354139,0.9717729,1975.4,1975.3,0.39]
[1617304354336,0.9717729,1975.4,1975.3,18.13828165]
[1617304354736,0.9717729,1975.4,1975.3,17.74828165]
[1617304354937,0.9717729,1975.4,1975.2,5.01]
[1617304355138,0.9717729,1975.4,1975.1,23.13828165]
[1617304355342,0.9717729,1975.4,1975.3,17.3]
[1617304355537,0.9717729,1975.4,1975.3,42.39938165]
[1617304355937,0.9717729,1975.4,1975.3,46.53938165]
[1617304355938,0.97827751,1975.4,1975.3,46.53938165]
[1617304356136,0.97827751,1975.4,1975.3,46.92938165]
[1617304356360,0.97827751,1975.4,1975.3,46.82938165]
[1617304356560,0.97827751,1975.4,1975.3,46.43938165]
[1617304356762,0.97827751,1975.4,1975.3,29.63938165]
[1617304357362,0.97827751,1975.4,1975.3,25.09938165]
[1617304357761,9.12827751,1975.4,1975.3,17.74828165]
[1617304357963,3.90827751,1975.4,1975.3,17.74828165]
[1617304358162,3.52827751,1975.4,1975.3,22.76041271]
[1617304358363,3.52827751,1975.4,1975.3,17.74828165]
[1617304358562,3.52827751,1975.4,1975.3,21.14828165]
[1617304358761,3.52827751,1975.4,1975.3,17.74828165]
[1617304359384,3.52827751,1975.4,1975.3,5.01213106]
[1617304359585,3.52827751,1975.4,1975.1,0.38]
[1617304359789,3.52827751,1975.4,1975.3,17.74828165]
[1617304361187,3.52827751,1975.4,1975.3,18.14828165]
[1617304361812,3.52827751,1975.4,1975.3,21.65828165]
[1617304362612,3.52827751,1975.4,1975.3,21.26828165]
[1617304362813,3.52827751,1975.4,1975.3,21.65828165]
[1617304363513,2.55650461,1975.4,1975.3,21.26828165]
[1617304363715,2.95650461,1975.4,1975.3,21.26828165]
[1617304363915,2.95650461,1975.4,1975.3,17.74828165]
[1617304364119,17.38894778,1975.4,1975.2,18.31355305]
[1617304364341,25.37543,1975.3,1974.9,18.31355305]
[1617304364539,25.37543,1975.3,1975.2,18.31355305]
[1617304364739,11.57543,1975.3,1974.5,10.51624]
[1617304364942,0.38,1975.0,1974.5,10.51624]
[1617304365138,0.343,1975.1,1974.5,10.65624]
[1617304365339,13.70577627,1975.4,1974.5,29.60452165]
[1617304365541,13.70577627,1975.4,1975.3,11.00384503]
[1617304365542,4.25817627,1975.4,1975.3,11.00384503]
[1617304365740,13.10817627,1975.4,1975.3,11.00384503]
[1617304366139,3.85817627,1975.4,1975.3,11.00384503]
[1617304366339,3.85167166,1975.4,1975.3,11.00384503]
[1617304366540,3.57167166,1975.4,1975.3,11.00384503]
[1617304366739,15.37167166,1975.4,1975.3,11.00384503]
[1617304366967,3.57167166,1975.4,1975.3,11.00384503]
[1617304367168,2.55,1975.4,1975.3,80.29310431]
[1617304367572,2.55,1975.4,1975.3,81.35310431]
[1617304367966,2.55,1975.4,1975.3,88.94526431]
[1617304368368,1.01603497,1975.9,1975.4,47.05657887]
[1617304368576,1.01603497,1975.9,1975.6,5.01]
[1617304368768,1.01603497,1975.9,1975.8,15.51]
[1617304368970,1.01603497,1975.9,1975.8,29.73]
[1617304369168,1.01603497,1975.9,1975.8,29.32]
[1617304369607,1.01603497,1975.9,1975.8,98.60925928]
[1617304369810,0.006,1976.1,1976.0,25.75]
[1617304370013,0.006,1976.1,1976.0,37.63582719]
[1617304370212,0.006,1976.1,1976.0,50.95582719]
[1617304370408,0.006,1976.1,1976.0,38.52]
[1617304370809,5.719e-05,1976.2,1976.1,29.15]
[1617304371012,0.01074433,1976.6,1976.2,29.15]
[1617304371216,2.87121055,1977.2,1976.6,30.0]
[1617304371217,1.28774749,1976.8,1976.6,30.0]
[1617304371419,14.45944345,1977.1,1976.8,17.74828165]
[1617304371420,2.08585345,1977.1,1976.8,17.74828165]
[1617304371614,2.08585345,1977.1,1976.9,9.16964326]
[1617304371810,2.08585345,1977.1,1976.9,9.17059109]
[1617304372011,1.80585345,1977.1,1976.9,9.17059109]
[1617304372218,1.80585345,1977.1,1976.9,5.01]
[1617304372413,1.80585345,1977.1,1976.9,5.4]
[1617304372615,1.80585345,1977.1,1976.9,41.83558463]
[1617304372616,6.44007112,1977.0,1976.9,41.83558463]
[1617304372822,3.85000112,1977.0,1976.9,71.7391016]
[1617304373015,3.11943308,1977.0,1976.9,81.40070225]
[1617304373218,0.54822336,1977.1,1976.9,82.60070225]
[1617304373419,6.40191201,1978.0,1977.3,4.0]
[1617304373622,0.9,1977.9,1977.8,0.4]
[1617304373824,0.9,1977.9,1977.8,18.14828165]
[1617304374021,6.68191201,1978.0,1977.9,40.10384503]
[1617304374220,6.68191201,1978.0,1977.9,49.20384503]
[1617304374423,6.40191201,1978.0,1977.9,54.21384503]
[1617304374840,6.40191201,1978.0,1977.9,41.13367952]
[1617304375239,6.40191201,1978.0,1977.9,43.13367952]
[1617304375842,6.40191201,1978.0,1977.9,43.54367952]
[1617304376042,6.35191201,1978.0,1977.9,43.13367952]
[1617304376243,6.35191201,1978.0,1976.7,10.11416]
[1617304376244,8.02354434,1977.9,1977.5,17.74828165]
[1617304376444,50.24280404,1977.9,1977.5,17.74828165]
[1617304376645,6.5,1977.8,1977.6,2.0]
[1617304376846,28.34,1977.7,1977.6,2.0]
[1617304377046,39.04569336,1977.7,1977.5,17.74828165]
[1617304377246,29.6,1977.6,1976.7,0.38]
[1617304377472,0.09132494,1977.5,1977.2,2.0]
[1617304377669,28.971,1977.3,1977.2,2.0]
[1617304377871,28.6,1977.3,1977.2,2.0]
[1617304378268,32.39403,1977.3,1977.2,2.0]
[1617304378869,42.51172,1977.3,1977.2,2.0]
[1617304379069,42.01172,1977.3,1977.2,2.0]
[1617304379273,43.51170853,1977.3,1977.2,2.0]
[1617304379468,43.46170853,1977.3,1977.2,2.0]
[1617304379668,14.86170853,1977.3,1977.2,2.0]
[1617304379872,13.36172,1977.3,1977.2,2.41]
[1617304380095,13.21622,1977.3,1977.2,2.41]
[1617304380293,15.76622,1977.3,1977.2,2.41]
[1617304380492,3.79403,1977.3,1977.2,2.41]
[1617304380702,0.02824056,1977.7,1977.2,2.41]
[1617304380897,0.02824056,1977.7,1977.6,0.41]
[1617304381098,7.61405056,1977.7,1977.4,2.44828165]
[1617304381694,8.63046836,1977.7,1977.4,2.44828165]
[1617304381894,7.61405056,1977.7,1977.6,0.39]
[1617304382094,7.61405056,1977.7,1977.6,2.9815085]
[1617304382295,0.02824056,1977.7,1977.6,3.3915085]
[1617304382722,0.02824056,1977.7,1977.6,5.83979015]
[1617304382923,1.03507175,1977.7,1977.6,5.83979015]
[1617304383126,1.00683119,1977.7,1977.6,5.42979015]
[1617304383330,0.93507175,1977.7,1977.6,5.42979015]
[1617304383525,9.3,1977.7,1977.6,5.81979015]
[1617304383725,0.00683657,1977.8,1977.7,26.07542935]
[1617304383927,0.00683657,1977.8,1977.7,0.4]
[1617304384331,0.00683657,1977.8,1977.6,5.42979015]
[1617304384927,0.00683657,1977.8,1977.6,5.81979015]
[1617304385348,1.657e-05,1977.9,1977.6,5.42979015]
[1617304385547,28.22216171,1978.0,1977.6,3.3915085]
[1617304385747,27.79216171,1978.0,1977.6,3.3915085]
[1617304386149,7.98608,1977.9,1977.7,2.44828165]
[1617304386349,24.56,1977.8,1977.7,2.44828165]
[1617304386549,11.4752597,1977.8,1977.7,2.44828165]
[1617304386751,7.61608,1977.9,1977.7,2.44828165]
[1617304386950,24.1091172,1977.9,1977.7,2.44828165]
[1617304387151,19.0913397,1977.9,1977.6,2.9815085]
[1617304387350,7.61608,1977.9,1977.6,2.9815085]
[1617304387549,10.16608,1977.9,1977.6,2.9815085]
[1617304387970,5.68,1977.8,1977.6,2.9815085]
[1617304388171,5.68,1977.8,1977.6,3.3715085]
[1617304388371,5.68,1977.8,1977.7,11.7]
[1617304388771,2.58,1977.9,1977.8,30.0]
[1617304388971,2.58,1977.9,1977.8,30.4]
[1617304389170,2.58,1977.9,1977.8,35.0]
[1617304389370,16.73,1977.9,1977.8,4.6]
[1617304389571,10.03,1977.9,1977.6,2.9815085]
[1617304390370,10.03,1977.9,1977.6,3.3715085]
[1617304390597,10.03,1977.9,1977.7,0.39]
[1617304391199,10.03,1977.9,1977.6,2.9815085]
[1617304391997,9.83,1977.9,1977.6,2.9815085]
[1617304392197,9.83,1977.9,1977.6,3.3915085]
[1617304392398,9.83,1977.9,1977.7,0.38]
[1617304392800,6.20191201,1978.0,1977.9,18.87305771]
[1617304393003,0.12040256,1978.2,1977.9,5.4]
[1617304393215,0.12040256,1978.2,1977.8,15.01629474]
[1617304393414,0.12040256,1978.2,1977.9,5.01]
[1617304393613,0.12040256,1978.2,1977.8,44.98973698]
[1617304393818,0.12040256,1978.2,1978.1,0.39]
[1617304394415,13.12040256,1978.2,1977.8,30.0]
[1617304394615,13.12040256,1978.2,1977.9,0.39]
[1617304395014,15.67040256,1978.2,1977.9,5.42973698]
[1617304395216,15.67040256,1978.2,1977.9,11.39331267]
[1617304395416,15.67040256,1978.2,1977.9,11.00331267]
[1617304395617,15.67040256,1978.2,1978.0,0.39]
[1617304395618,23.25469256,1978.2,1978.0,0.39]
[1617304395840,23.20469256,1978.2,1977.9,17.14331267]
[1617304396239,2.62040256,1978.2,1977.9,47.14331267]
[1617304397040,2.62040256,1978.2,1978.1,0.4]
[1617304397440,2.62040256,1978.2,1977.9,47.14331267]
[1617304397842,2.62040256,1978.2,1977.9,41.00331267]
[1617304398040,2.62040256,1978.2,1978.1,0.39]
[1617304398462,7.58378,1978.3,1978.1,0.39]
[1617304398663,7.58378,1978.3,1978.1,6.8233]
[1617304399269,0.00814286,1978.4,1978.2,5.4]
[1617304399467,0.00814286,1978.4,1978.3,0.4]
[1617304400465,0.00814286,1978.4,1978.1,2.0]
[1617304400865,11.48340256,1978.4,1978.1,2.0]
[1617304401112,7.58378,1978.3,1978.1,2.0]
[1617304401915,28.11465584,1978.2,1978.1,32.0]
[1617304402316,42.28991554,1978.2,1978.1,32.0]